[Event "Live Chess"]
[Site "Chess.com"]
[Date "2023.05.21"]
[Round "-"]
[White "SupremeTactician"]
[Black "JoRoSaR"]
[Result "1-0"]
[WhiteElo "2221"]
[BlackElo "1685"]
[TimeControl "300"]
[EndTime "6:37:19 PDT"]
[Termination "SupremeTactician won by resignation"]

1. e4 {[%clk 0:04:57.5]} 1... c5 {[%clk 0:04:45]} 2. Nf3 {[%clk 0:04:51.8]} 2...
Nc6 {[%clk 0:04:44.4]} 3. d4 {[%clk 0:04:50.4]} 3... cxd4 {[%clk 0:04:44.3]} 4.
Nxd4 {[%clk 0:04:49.5]} 4... e5 {[%clk 0:04:44.1]} 5. Nb5 {[%clk 0:04:47.3]}
5... d6 {[%clk 0:04:43.6]} 6. N1c3 {[%clk 0:04:46.5]} 6... a6 {[%clk 0:04:43.3]}
7. Na3 {[%clk 0:04:46]} 7... b5 {[%clk 0:04:43.1]} 8. Nd5 {[%clk 0:04:44.5]}
8... Nce7 {[%clk 0:04:42.9]} 9. c4 {[%clk 0:04:42]} 9... Nxd5 {[%clk 0:04:42.1]}
10. cxd5 {[%clk 0:04:40.5]} 10... f5 {[%clk 0:04:40.8]} 11. Bd3 {[%clk
0:04:35.7]} 11... f4 {[%clk 0:04:39.5]} 12. O-O {[%clk 0:04:30]} 12... Be7
{[%clk 0:04:38.8]} 13. Bd2 {[%clk 0:04:19.9]} 13... Nf6 {[%clk 0:04:36.9]} 14.
b4 {[%clk 0:04:18.3]} 14... O-O {[%clk 0:04:34.8]} 15. f3 {[%clk 0:04:17]} 15...
Qe8 {[%clk 0:04:32.8]} 16. Rc1 {[%clk 0:04:14.3]} 16... Bd7 {[%clk 0:04:31.2]}
17. Qe2 {[%clk 0:04:09.1]} 17... Qg6 {[%clk 0:04:30]} 18. Rc7 {[%clk 0:04:05.2]}
18... Bd8 {[%clk 0:04:28.3]} 19. Rc3 {[%clk 0:03:58.4]} 19... Bb6+ {[%clk
0:04:27.1]} 20. Kh1 {[%clk 0:03:57.2]} 20... Bd4 {[%clk 0:04:25.6]} 21. Rc2
{[%clk 0:03:55.3]} 21... Nh5 {[%clk 0:04:19.5]} 22. Be1 {[%clk 0:03:51.3]} 22...
Qh6 {[%clk 0:04:17.5]} 23. h3 {[%clk 0:03:28.4]} 23... Bb6 {[%clk 0:04:16]} 24.
Kh2 {[%clk 0:03:20.6]} 24... Qg6 {[%clk 0:04:14.4]} 25. Nb1 {[%clk 0:03:05.4]}
25... Rf6 {[%clk 0:04:12]} 26. Nc3 {[%clk 0:03:03.3]} 26... Raf8 {[%clk
0:04:02.6]} 27. Nd1 {[%clk 0:03:00.5]} 27... Ng3 {[%clk 0:04:01.6]} 28. Bxg3
{[%clk 0:02:56.9]} 28... Qxg3+ {[%clk 0:04:01.5]} 29. Kh1 {[%clk 0:02:56]} 29...
Bxh3 {[%clk 0:03:58.4]} 30. gxh3 {[%clk 0:02:54.5]} 30... Qxh3+ {[%clk 0:03:57]}
31. Qh2 {[%clk 0:02:53.4]} 31... Qd7 {[%clk 0:03:55.7]} 32. Rg2 {[%clk
0:02:48.1]} 32... Rh6 {[%clk 0:03:54.7]} 33. Qxh6 {[%clk 0:02:45.8]} 1-0

[Event "Live Chess"]
[Site "Chess.com"]
[Date "2023.05.21"]
[Round "-"]
[White "JackCheetham1"]
[Black "grillage"]
[Result "1-0"]
[WhiteElo "1712"]
[BlackElo "1772"]
[TimeControl "300"]
[EndTime "6:37:20 PDT"]
[Termination "JackCheetham1 won on time"]

1. e4 {[%clk 0:04:59.4]} 1... d5 {[%clk 0:04:58.4]} 2. exd5 {[%clk 0:04:57.9]}
2... Qxd5 {[%clk 0:04:57.3]} 3. Nc3 {[%clk 0:04:57.5]} 3... Qd8 {[%clk
0:04:55.8]} 4. d4 {[%clk 0:04:56.3]} 4... Nf6 {[%clk 0:04:53.7]} 5. Nf3 {[%clk
0:04:54.9]} 5... Bg4 {[%clk 0:04:52.5]} 6. Be2 {[%clk 0:04:53.3]} 6... e6 {[%clk
0:04:50.5]} 7. a3 {[%clk 0:04:49.1]} 7... c6 {[%clk 0:04:49.2]} 8. O-O {[%clk
0:04:46.5]} 8... Nbd7 {[%clk 0:04:45.7]} 9. h3 {[%clk 0:04:44.8]} 9... Bxf3
{[%clk 0:04:44.3]} 10. Bxf3 {[%clk 0:04:41.8]} 10... Bd6 {[%clk 0:04:43.3]} 11.
Bg5 {[%clk 0:04:39]} 11... Qc7 {[%clk 0:04:42]} 12. Re1 {[%clk 0:04:30.7]} 12...
O-O {[%clk 0:04:38.3]} 13. Qd2 {[%clk 0:04:23.7]} 13... Nd5 {[%clk 0:04:25.2]}
14. Nxd5 {[%clk 0:04:04.7]} 14... cxd5 {[%clk 0:04:21.6]} 15. c3 {[%clk
0:03:54.1]} 15... Nb6 {[%clk 0:03:54.8]} 16. Qe2 {[%clk 0:03:26]} 16... Be7
{[%clk 0:03:49.6]} 17. Bxe7 {[%clk 0:03:18.3]} 17... Qxe7 {[%clk 0:03:48.5]} 18.
a4 {[%clk 0:03:13.5]} 18... Qc7 {[%clk 0:03:37.9]} 19. a5 {[%clk 0:02:49]} 19...
Nc4 {[%clk 0:03:36.4]} 20. a6 {[%clk 0:02:45.2]} 20... b5 {[%clk 0:03:33.8]} 21.
b3 {[%clk 0:02:37.6]} 21... Nd6 {[%clk 0:03:32.5]} 22. Rec1 {[%clk 0:02:30.5]}
22... Rfc8 {[%clk 0:03:25.7]} 23. Qe5 {[%clk 0:02:25.9]} 23... Qb6 {[%clk
0:03:23]} 24. Be2 {[%clk 0:02:11.5]} 24... Rc7 {[%clk 0:03:11.6]} 25. g3 {[%clk
0:01:49.7]} 25... Rac8 {[%clk 0:03:01.1]} 26. Qe3 {[%clk 0:01:41.8]} 26... Ne4
{[%clk 0:02:58.5]} 27. c4 {[%clk 0:01:34.5]} 27... bxc4 {[%clk 0:02:55.7]} 28.
bxc4 {[%clk 0:01:32.8]} 28... Nf6 {[%clk 0:02:15.8]} 29. c5 {[%clk 0:01:27.2]}
29... Qc6 {[%clk 0:02:08.2]} 30. Rcb1 {[%clk 0:01:22.9]} 30... Ne4 {[%clk
0:02:01.4]} 31. Bb5 {[%clk 0:01:17.3]} 31... Qa8 {[%clk 0:01:57.6]} 32. Bd3
{[%clk 0:01:04.3]} 32... Nf6 {[%clk 0:01:55.3]} 33. Qf4 {[%clk 0:00:56.7]} 33...
Rc6 {[%clk 0:01:42.6]} 34. Qh4 {[%clk 0:00:49.4]} 34... g6 {[%clk 0:01:39.2]}
35. Qxf6 {[%clk 0:00:47.8]} 35... Rb8 {[%clk 0:01:02]} 36. Rxb8+ {[%clk
0:00:41.3]} 36... Qxb8 {[%clk 0:01:01.2]} 37. Rb1 {[%clk 0:00:40.8]} 37... Qc8
{[%clk 0:00:59.2]} 38. Rb7 {[%clk 0:00:38.1]} 38... Qf8 {[%clk 0:00:56.5]} 39.
Rxa7 {[%clk 0:00:32.8]} 39... Rc8 {[%clk 0:00:53.6]} 40. Rb7 {[%clk 0:00:29]}
40... Ra8 {[%clk 0:00:45.9]} 41. a7 {[%clk 0:00:22.1]} 41... Qe8 {[%clk
0:00:44.1]} 42. Qe7 {[%clk 0:00:19.5]} 42... Qxe7 {[%clk 0:00:37.2]} 43. Rxe7
{[%clk 0:00:18.1]} 43... Kg7 {[%clk 0:00:36.2]} 44. Bb5 {[%clk 0:00:14.9]} 44...
Kf6 {[%clk 0:00:35.3]} 45. Rb7 {[%clk 0:00:13.1]} 45... Kf5 {[%clk 0:00:33.1]}
46. c6 {[%clk 0:00:12.1]} 46... Ke4 {[%clk 0:00:31.5]} 47. c7 {[%clk 0:00:10.2]}
47... Kxd4 {[%clk 0:00:31]} 48. Rb8 {[%clk 0:00:07.9]} 48... Rxa7 {[%clk
0:00:30]} 49. c8=Q {[%clk 0:00:06.9]} 49... Ra1+ {[%clk 0:00:29.3]} 50. Kg2
{[%clk 0:00:06.5]} 50... Ke5 {[%clk 0:00:28.2]} 51. Qd7 {[%clk 0:00:05.7]} 51...
Kf6 {[%clk 0:00:27.1]} 52. Rc8 {[%clk 0:00:05.5]} 52... Rb1 {[%clk 0:00:24.8]}
53. Rf8 {[%clk 0:00:05.4]} 53... Ke5 {[%clk 0:00:22.9]} 54. Qxf7 {[%clk
0:00:05.3]} 54... Kd4 {[%clk 0:00:22.2]} 55. Qf6+ {[%clk 0:00:05]} 55... Kc5
{[%clk 0:00:21.9]} 56. Qxe6 {[%clk 0:00:04.9]} 56... Kd4 {[%clk 0:00:19.7]} 57.
Qe7 {[%clk 0:00:04]} 57... Rxb5 {[%clk 0:00:17.6]} 58. Rf4+ {[%clk 0:00:03.9]}
58... Kc3 {[%clk 0:00:15.4]} 59. Qf6+ {[%clk 0:00:03.8]} 59... Kb3 {[%clk
0:00:13.3]} 60. Rf3+ {[%clk 0:00:03.7]} 60... Ka4 {[%clk 0:00:12]} 61. Qe5
{[%clk 0:00:03.4]} 61... Ka5 {[%clk 0:00:10.3]} 62. Qe2 {[%clk 0:00:03.3]} 62...
Rb4 {[%clk 0:00:08.9]} 63. Re3 {[%clk 0:00:03.2]} 63... Rb5 {[%clk 0:00:08]} 64.
Re5 {[%clk 0:00:03.1]} 64... Kb6 {[%clk 0:00:07.2]} 65. Re3 {[%clk 0:00:02.8]}
65... Kc6 {[%clk 0:00:06.7]} 66. Qd3 {[%clk 0:00:02.5]} 66... Rc5 {[%clk
0:00:06]} 67. Re2 {[%clk 0:00:02.4]} 67... Kd6 {[%clk 0:00:05.1]} 68. Rc2 {[%clk
0:00:02.3]} 68... Rxc2 {[%clk 0:00:03.3]} 69. Qxc2 {[%clk 0:00:02.2]} 69... Ke5
{[%clk 0:00:02.7]} 70. Qd2 {[%clk 0:00:02.1]} 70... Ke4 {[%clk 0:00:01.8]} 71.
Qe2+ {[%clk 0:00:02]} 71... Kd4 {[%clk 0:00:00.7]} 72. Qe1 {[%clk 0:00:01.9]}
72... Kc4 {[%clk 0:00:00.3]} 73. Qb1 {[%clk 0:00:01.8]} 1-0

[Event "Live Chess"]
[Site "Chess.com"]
[Date "2023.05.21"]
[Round "-"]
[White "djw60"]
[Black "NatashaRegan"]
[Result "1-0"]
[WhiteElo "2165"]
[BlackElo "1702"]
[TimeControl "300"]
[EndTime "6:37:24 PDT"]
[Termination "djw60 won by checkmate"]

1. c4 {[%clk 0:04:56.7]} 1... Nf6 {[%clk 0:04:56.7]} 2. Nc3 {[%clk 0:04:55.3]}
2... g6 {[%clk 0:04:55.7]} 3. e4 {[%clk 0:04:53.7]} 3... Bg7 {[%clk 0:04:53.8]}
4. d4 {[%clk 0:04:52.7]} 4... d6 {[%clk 0:04:52.2]} 5. Nf3 {[%clk 0:04:50.3]}
5... O-O {[%clk 0:04:50]} 6. Be2 {[%clk 0:04:49.2]} 6... e5 {[%clk 0:04:46.2]}
7. d5 {[%clk 0:04:47.9]} 7... Nbd7 {[%clk 0:04:41.2]} 8. Bg5 {[%clk 0:04:45.6]}
8... h6 {[%clk 0:04:34]} 9. Bh4 {[%clk 0:04:44.5]} 9... g5 {[%clk 0:04:32]} 10.
Bg3 {[%clk 0:04:43.5]} 10... Nc5 {[%clk 0:04:23.4]} 11. Nd2 {[%clk 0:04:40.7]}
11... a5 {[%clk 0:04:19.5]} 12. b3 {[%clk 0:04:37.4]} 12... Nh7 {[%clk
0:03:59.8]} 13. h4 {[%clk 0:04:28.2]} 13... f5 {[%clk 0:03:54.9]} 14. f3 {[%clk
0:04:14.6]} 14... f4 {[%clk 0:03:48.2]} 15. Bf2 {[%clk 0:04:12.6]} 15... b6
{[%clk 0:03:45]} 16. Qc2 {[%clk 0:04:09.9]} 16... Bd7 {[%clk 0:02:19.3]} 17.
O-O-O {[%clk 0:04:04.3]} 17... Nf6 {[%clk 0:02:01.4]} 18. hxg5 {[%clk
0:04:01.8]} 18... hxg5 {[%clk 0:01:59.7]} 19. g4 {[%clk 0:03:59.9]} 19... Kf7
{[%clk 0:01:51.6]} 20. Rdg1 {[%clk 0:03:37.9]} 20... c6 {[%clk 0:01:38.1]} 21.
dxc6 {[%clk 0:03:34.1]} 21... Bxc6 {[%clk 0:01:37.1]} 22. Nd5 {[%clk 0:03:30.8]}
22... Bxd5 {[%clk 0:01:32.4]} 23. exd5 {[%clk 0:03:29.2]} 23... Qd7 {[%clk
0:01:26.7]} 24. Bd3 {[%clk 0:03:23.7]} 24... b5 {[%clk 0:01:20.1]} 25. Bxc5
{[%clk 0:03:16.8]} 25... dxc5 {[%clk 0:01:17.1]} 26. Bf5 {[%clk 0:03:12.8]}
26... Qd6 {[%clk 0:01:09.6]} 27. Be6+ {[%clk 0:03:11.7]} 27... Ke7 {[%clk
0:01:07.4]} 28. Qg6 {[%clk 0:03:06.6]} 28... Bh8 {[%clk 0:00:55.7]} 29. Rh7+
{[%clk 0:02:54]} 29... Nxh7 {[%clk 0:00:51.9]} 30. Qxh7+ {[%clk 0:02:52.7]}
30... Kd8 {[%clk 0:00:43.9]} 31. Ne4 {[%clk 0:02:49.6]} 31... Qe7 {[%clk
0:00:40.4]} 32. Rh1 {[%clk 0:02:12.5]} 32... Bg7 {[%clk 0:00:35.1]} 33. Qg6
{[%clk 0:02:03.7]} 33... bxc4 {[%clk 0:00:30.1]} 34. Rh7 {[%clk 0:01:56.9]}
34... cxb3 {[%clk 0:00:20.7]} 35. axb3 {[%clk 0:01:50.5]} 35... c4 {[%clk
0:00:17.6]} 36. Rxg7 {[%clk 0:01:48.5]} 36... Qa3+ {[%clk 0:00:15.5]} 37. Kd2
{[%clk 0:01:43.9]} 37... Qb2+ {[%clk 0:00:14.5]} 38. Ke1 {[%clk 0:01:42.8]}
38... c3 {[%clk 0:00:12.9]} 39. Rd7+ {[%clk 0:01:36.7]} 39... Kc8 {[%clk
0:00:11.2]} 40. Rf7+ {[%clk 0:01:32.5]} 40... Kb8 {[%clk 0:00:09.4]} 41. Rxf8+
{[%clk 0:01:31.5]} 41... Ka7 {[%clk 0:00:08.4]} 42. Qf7+ {[%clk 0:01:25]} 42...
Kb6 {[%clk 0:00:07.3]} 43. Rxa8 {[%clk 0:01:16.1]} 43... Kb5 {[%clk 0:00:04.9]}
44. Qb7# {[%clk 0:01:10.8]} 1-0

[Event "Live Chess"]
[Site "Chess.com"]
[Date "2023.05.21"]
[Round "-"]
[White "mattihelenius2"]
[Black "ProfPoisson"]
[Result "0-1"]
[WhiteElo "491"]
[BlackElo "1219"]
[TimeControl "300"]
[EndTime "6:37:35 PDT"]
[Termination "ProfPoisson won by checkmate"]

1. d4 {[%clk 0:04:57.4]} 1... e6 {[%clk 0:04:56.5]} 2. c4 {[%clk 0:04:55.5]}
2... f5 {[%clk 0:04:54.2]} 3. Nc3 {[%clk 0:04:54.8]} 3... Nf6 {[%clk 0:04:51.7]}
4. Bg5 {[%clk 0:04:46.9]} 4... Bb4 {[%clk 0:04:49.8]} 5. a3 {[%clk 0:04:34.4]}
5... Bxc3+ {[%clk 0:04:47]} 6. bxc3 {[%clk 0:04:30]} 6... O-O {[%clk 0:04:46.4]}
7. Nf3 {[%clk 0:04:20.7]} 7... d6 {[%clk 0:04:44]} 8. Bxf6 {[%clk 0:04:13.6]}
8... Qxf6 {[%clk 0:04:40.8]} 9. e3 {[%clk 0:04:08.3]} 9... c5 {[%clk 0:04:35.5]}
10. d5 {[%clk 0:04:02.7]} 10... e5 {[%clk 0:04:32.7]} 11. Bd3 {[%clk 0:03:41.4]}
11... Nd7 {[%clk 0:04:28.2]} 12. O-O {[%clk 0:03:37.2]} 12... e4 {[%clk
0:04:25.7]} 13. Bxe4 {[%clk 0:02:51.6]} 13... fxe4 {[%clk 0:04:22.7]} 14. Nd2
{[%clk 0:02:37.2]} 14... Qg6 {[%clk 0:04:08.5]} 15. g3 {[%clk 0:02:35]} 15...
Ne5 {[%clk 0:04:04.1]} 16. Nxe4 {[%clk 0:02:32.7]} 16... Qxe4 {[%clk 0:04:00.9]}
17. f3 {[%clk 0:02:25.4]} 17... Nxf3+ {[%clk 0:03:52.9]} 18. Rxf3 {[%clk
0:02:23.4]} 18... Qxf3 {[%clk 0:03:48.2]} 19. Qxf3 {[%clk 0:02:21.5]} 19... Rxf3
{[%clk 0:03:46.1]} 20. Rf1 {[%clk 0:02:21.2]} 20... Rxf1+ {[%clk 0:03:43.3]} 21.
Kxf1 {[%clk 0:02:20.7]} 21... Bh3+ {[%clk 0:03:40.9]} 22. Ke2 {[%clk 0:02:20]}
22... Rf8 {[%clk 0:03:38.6]} 23. Kd3 {[%clk 0:02:18.9]} 23... Rf2 {[%clk
0:03:12]} 24. a4 {[%clk 0:02:08.5]} 24... Rxh2 {[%clk 0:03:10]} 25. g4 {[%clk
0:02:06.5]} 25... Bxg4 {[%clk 0:03:07.5]} 26. Ke4 {[%clk 0:02:02.7]} 26... Rc2
{[%clk 0:03:01]} 27. Kd3 {[%clk 0:02:00.1]} 27... Ra2 {[%clk 0:02:52]} 28. e4
{[%clk 0:01:54.9]} 28... h5 {[%clk 0:02:48.6]} 29. Ke3 {[%clk 0:01:52.7]} 29...
h4 {[%clk 0:02:47.2]} 30. Kf4 {[%clk 0:01:51.6]} 30... Rxa4 {[%clk 0:02:38.7]}
31. Kxg4 {[%clk 0:01:49.1]} 31... Rxc4 {[%clk 0:02:38.2]} 32. Kxh4 {[%clk
0:01:46.5]} 32... Rxe4+ {[%clk 0:02:36.7]} 33. Kg5 {[%clk 0:01:44.4]} 33... Rc4
{[%clk 0:02:34.7]} 34. Kf5 {[%clk 0:01:43.5]} 34... Rxc3 {[%clk 0:02:33.4]} 35.
Ke6 {[%clk 0:01:42.7]} 35... a5 {[%clk 0:02:26]} 36. Kxd6 {[%clk 0:01:41.7]}
36... Rd3 {[%clk 0:02:24.7]} 37. Kxc5 {[%clk 0:01:40.2]} 37... Rxd5+ {[%clk
0:02:23.3]} 38. Kxd5 {[%clk 0:01:39.4]} 38... g5 {[%clk 0:02:22.6]} 39. Kc4
{[%clk 0:01:39.1]} 39... g4 {[%clk 0:02:21.6]} 40. Kd4 {[%clk 0:01:38.1]} 40...
g3 {[%clk 0:02:20.9]} 41. Ke3 {[%clk 0:01:37.6]} 41... a4 {[%clk 0:02:18.8]} 42.
Kf3 {[%clk 0:01:35.1]} 42... a3 {[%clk 0:02:17.3]} 43. Kxg3 {[%clk 0:01:34.6]}
43... a2 {[%clk 0:02:16.6]} 44. Kf3 {[%clk 0:01:34]} 44... a1=Q {[%clk
0:02:14.5]} 45. Ke3 {[%clk 0:01:33.3]} 45... Kf7 {[%clk 0:02:10.2]} 46. Kd3
{[%clk 0:01:32]} 46... Ke6 {[%clk 0:02:08.8]} 47. Kc2 {[%clk 0:01:31.6]} 47...
Qd4 {[%clk 0:02:06.3]} 48. Kb3 {[%clk 0:01:30.2]} 48... Kd5 {[%clk 0:02:05]} 49.
Ka3 {[%clk 0:01:29]} 49... Qb6 {[%clk 0:02:01.1]} 50. Ka4 {[%clk 0:01:28.1]}
50... Kc4 {[%clk 0:01:59.7]} 51. Ka3 {[%clk 0:01:26.8]} 51... Qb3# {[%clk
0:01:58.1]} 0-1

[Event "Live Chess"]
[Site "Chess.com"]
[Date "2023.05.21"]
[Round "-"]
[White "Albul"]
[Black "PantherCal"]
[Result "0-1"]
[WhiteElo "2119"]
[BlackElo "1827"]
[TimeControl "300"]
[EndTime "6:37:43 PDT"]
[Termination "PantherCal won on time"]

1. e4 {[%clk 0:04:55.8]} 1... d6 {[%clk 0:04:59.9]} 2. Bc4 {[%clk 0:04:53.8]}
2... g6 {[%clk 0:04:59.8]} 3. d3 {[%clk 0:04:52.2]} 3... Bg7 {[%clk 0:04:59.5]}
4. c3 {[%clk 0:04:51.9]} 4... Nf6 {[%clk 0:04:59.1]} 5. f4 {[%clk 0:04:51.1]}
5... O-O {[%clk 0:04:58.8]} 6. Nf3 {[%clk 0:04:50.5]} 6... c5 {[%clk 0:04:58.5]}
7. O-O {[%clk 0:04:50]} 7... Nc6 {[%clk 0:04:58.2]} 8. h3 {[%clk 0:04:47.8]}
8... a6 {[%clk 0:04:57.9]} 9. g4 {[%clk 0:04:45.6]} 9... b5 {[%clk 0:04:57.5]}
10. Bb3 {[%clk 0:04:45]} 10... Bb7 {[%clk 0:04:57.1]} 11. Nbd2 {[%clk
0:04:41.7]} 11... e5 {[%clk 0:04:55.9]} 12. f5 {[%clk 0:04:37.6]} 12... Na5
{[%clk 0:04:46.8]} 13. g5 {[%clk 0:04:28.5]} 13... Nh5 {[%clk 0:04:43.6]} 14. f6
{[%clk 0:04:27.5]} 14... Bh8 {[%clk 0:04:41]} 15. Rf2 {[%clk 0:04:18]} 15... Qd7
{[%clk 0:04:37.2]} 16. Qf1 {[%clk 0:04:14.7]} 16... Nf4 {[%clk 0:04:35.6]} 17.
Kh2 {[%clk 0:04:12]} 17... Nxb3 {[%clk 0:04:29.9]} 18. axb3 {[%clk 0:04:09.3]}
18... h6 {[%clk 0:04:20.3]} 19. Ng1 {[%clk 0:03:30]} 19... hxg5 {[%clk
0:04:17.3]} 20. h4 {[%clk 0:03:29.5]} 20... Bxf6 {[%clk 0:04:15.6]} 21. hxg5
{[%clk 0:03:27.3]} 21... Bxg5 {[%clk 0:04:15.5]} 22. Ndf3 {[%clk 0:03:25.8]}
22... Bh6 {[%clk 0:04:05.6]} 23. Nh3 {[%clk 0:03:11.3]} 23... Bc8 {[%clk
0:04:01.6]} 24. Nxf4 {[%clk 0:03:03.5]} 24... Bxf4+ {[%clk 0:04:01.5]} 25. Bxf4
{[%clk 0:03:01.9]} 25... exf4 {[%clk 0:04:01.4]} 26. Ng1 {[%clk 0:02:56.7]}
26... Kg7 {[%clk 0:03:59.9]} 27. Rxf4 {[%clk 0:02:54.7]} 27... Rh8+ {[%clk
0:03:56.6]} 28. Kg3 {[%clk 0:02:54]} 28... Qe7 {[%clk 0:03:45.2]} 29. Qf3 {[%clk
0:01:37]} 29... Qg5+ {[%clk 0:03:34.6]} 30. Kf2 {[%clk 0:01:33.8]} 30... Be6
{[%clk 0:03:15.6]} 31. Ke3 {[%clk 0:01:24.3]} 31... Rh4 {[%clk 0:02:45.1]} 32.
Rf1 {[%clk 0:01:10.8]} 32... Rah8 {[%clk 0:02:41.2]} 33. Kd2 {[%clk 0:00:48.1]}
33... Rh2+ {[%clk 0:02:29.6]} 34. Kd1 {[%clk 0:00:16.8]} 34... Bxb3+ {[%clk
0:02:24.5]} 35. Kc1 {[%clk 0:00:13.2]} 35... Rc2+ {[%clk 0:01:50.7]} 36. Kb1
{[%clk 0:00:12.5]} 36... Rhh2 {[%clk 0:01:49.7]} 37. Rxf7+ {[%clk 0:00:10.4]}
37... Kh6 {[%clk 0:01:43]} 0-1

[Event "Live Chess"]
[Site "Chess.com"]
[Date "2023.05.21"]
[Round "-"]
[White "lateforthesky"]
[Black "MJMykh"]
[Result "1-0"]
[WhiteElo "2111"]
[BlackElo "1162"]
[TimeControl "300"]
[EndTime "6:37:43 PDT"]
[Termination "lateforthesky won by resignation"]

1. e4 {[%clk 0:04:56.8]} 1... e5 {[%clk 0:04:58.3]} 2. f4 {[%clk 0:04:53.2]}
2... exf4 {[%clk 0:04:55.6]} 3. Nf3 {[%clk 0:04:52.3]} 3... Nc6 {[%clk 0:04:55]}
4. d4 {[%clk 0:04:50.9]} 4... Nf6 {[%clk 0:04:53.9]} 5. Nc3 {[%clk 0:04:49]}
5... Bb4 {[%clk 0:04:52]} 6. Bd3 {[%clk 0:04:42.2]} 6... Bxc3+ {[%clk
0:04:45.7]} 7. bxc3 {[%clk 0:04:40.6]} 7... O-O {[%clk 0:04:45.2]} 8. Bxf4
{[%clk 0:04:37.7]} 8... d6 {[%clk 0:04:44]} 9. O-O {[%clk 0:04:35.7]} 9... Bg4
{[%clk 0:04:42.8]} 10. h3 {[%clk 0:04:34.2]} 10... Bxf3 {[%clk 0:04:41.2]} 11.
Qxf3 {[%clk 0:04:32.4]} 11... Rc8 {[%clk 0:04:36.2]} 12. Bg5 {[%clk 0:04:30.7]}
12... d5 {[%clk 0:04:30.2]} 13. e5 {[%clk 0:04:28.7]} 1-0

[Event "Live Chess"]
[Site "Chess.com"]
[Date "2023.05.21"]
[Round "-"]
[White "SavagePawn7"]
[Black "GMHarry-youtube"]
[Result "0-1"]
[WhiteElo "782"]
[BlackElo "2038"]
[TimeControl "300"]
[EndTime "6:37:56 PDT"]
[Termination "GMHarry-youtube won by resignation"]

1. e4 {[%clk 0:04:52.7]} 1... c5 {[%clk 0:04:59]} 2. d4 {[%clk 0:04:42.8]} 2...
cxd4 {[%clk 0:04:58.9]} 3. c3 {[%clk 0:04:40.8]} 3... dxc3 {[%clk 0:04:57.9]} 4.
Nxc3 {[%clk 0:04:38.6]} 4... Nc6 {[%clk 0:04:57.8]} 5. Nf3 {[%clk 0:04:36.6]}
5... e6 {[%clk 0:04:56.4]} 6. Bc4 {[%clk 0:04:33.5]} 6... Bb4 {[%clk 0:04:55.6]}
7. O-O {[%clk 0:04:25]} 7... Nge7 {[%clk 0:04:53.4]} 8. Be3 {[%clk 0:04:21.1]}
8... Bxc3 {[%clk 0:04:52.2]} 9. bxc3 {[%clk 0:04:19.6]} 9... d5 {[%clk
0:04:52.1]} 10. exd5 {[%clk 0:04:18.1]} 10... exd5 {[%clk 0:04:52]} 11. Bb3
{[%clk 0:04:15.6]} 11... O-O {[%clk 0:04:50.7]} 12. Bc5 {[%clk 0:04:11.5]} 12...
Be6 {[%clk 0:04:48.5]} 13. Bxe7 {[%clk 0:04:06.9]} 13... Nxe7 {[%clk 0:04:48.4]}
14. Ne5 {[%clk 0:04:04.1]} 14... Ng6 {[%clk 0:04:46]} 15. Nxg6 {[%clk
0:04:02.5]} 15... hxg6 {[%clk 0:04:45.9]} 16. Qf3 {[%clk 0:03:57.2]} 16... Qc7
{[%clk 0:04:39]} 17. Bxd5 {[%clk 0:03:51.9]} 17... Bxd5 {[%clk 0:04:38.2]} 18.
Qxd5 {[%clk 0:03:50.7]} 18... Qxc3 {[%clk 0:04:37.9]} 19. Rfd1 {[%clk
0:03:45.3]} 19... Rad8 {[%clk 0:04:33.8]} 20. Qb3 {[%clk 0:03:40.3]} 20... Rxd1+
{[%clk 0:04:29.8]} 21. Rxd1 {[%clk 0:03:38.9]} 21... Qxb3 {[%clk 0:04:25.4]} 22.
axb3 {[%clk 0:03:37.6]} 22... Rc8 {[%clk 0:04:24.4]} 23. h3 {[%clk 0:03:34.6]}
23... Rc3 {[%clk 0:04:11.7]} 24. Ra1 {[%clk 0:03:30.2]} 24... Rxb3 {[%clk
0:04:09.1]} 25. Rxa7 {[%clk 0:03:28.8]} 25... b5 {[%clk 0:04:09]} 26. Ra8+
{[%clk 0:03:26.4]} 26... Kh7 {[%clk 0:04:07.7]} 27. Rb8 {[%clk 0:03:23.3]} 27...
Rb1+ {[%clk 0:04:05.9]} 28. Kh2 {[%clk 0:03:21.8]} 28... b4 {[%clk 0:04:05]} 29.
f3 {[%clk 0:03:20.8]} 29... b3 {[%clk 0:04:03.8]} 30. g3 {[%clk 0:03:19.9]}
30... b2 {[%clk 0:04:02.4]} 31. f4 {[%clk 0:03:17.5]} 31... f6 {[%clk
0:04:00.9]} 32. h4 {[%clk 0:03:14.8]} 32... g5 {[%clk 0:03:54.7]} 33. hxg5
{[%clk 0:03:12.4]} 33... fxg5 {[%clk 0:03:54.6]} 34. fxg5 {[%clk 0:03:11.2]}
34... Kg6 {[%clk 0:03:53.1]} 35. Kh3 {[%clk 0:03:09.5]} 35... Rh1+ {[%clk
0:03:51]} 36. Kg4 {[%clk 0:03:08.1]} 36... b1=Q {[%clk 0:03:50.9]} 37. Rxb1
{[%clk 0:03:05.7]} 37... Rxb1 {[%clk 0:03:50.8]} 0-1

[Event "Live Chess"]
[Site "Chess.com"]
[Date "2023.05.21"]
[Round "-"]
[White "viktorskliarov"]
[Black "HadesLearmonth"]
[Result "1-0"]
[WhiteElo "2651"]
[BlackElo "1202"]
[TimeControl "300"]
[EndTime "6:38:00 PDT"]
[Termination "viktorskliarov won by resignation"]

1. e4 {[%clk 0:04:57.1]} 1... e5 {[%clk 0:04:58.8]} 2. Nc3 {[%clk 0:04:53.2]}
2... Nc6 {[%clk 0:04:55.9]} 3. Bc4 {[%clk 0:04:52.2]} 3... Nf6 {[%clk
0:04:53.7]} 4. d3 {[%clk 0:04:51.4]} 4... Be7 {[%clk 0:04:52.3]} 5. a3 {[%clk
0:04:49.6]} 5... a6 {[%clk 0:04:47.1]} 6. Nge2 {[%clk 0:04:48.7]} 6... b5 {[%clk
0:04:46.1]} 7. Ba2 {[%clk 0:04:47.4]} 7... Bb7 {[%clk 0:04:44.3]} 8. Ng3 {[%clk
0:04:46.4]} 8... O-O {[%clk 0:04:41.2]} 9. O-O {[%clk 0:04:45.5]} 9... b4 {[%clk
0:04:35.2]} 10. Nd5 {[%clk 0:04:29.1]} 10... bxa3 {[%clk 0:04:26.3]} 11. Nxe7+
{[%clk 0:04:24.5]} 11... Qxe7 {[%clk 0:04:19.6]} 12. Nf5 {[%clk 0:04:20.4]}
12... Qc5 {[%clk 0:04:12.5]} 13. Be3 {[%clk 0:04:11]} 13... Nd4 {[%clk 0:04:10]}
14. bxa3 {[%clk 0:03:35.8]} 14... Qxc2 {[%clk 0:03:51.3]} 15. Nxd4 {[%clk
0:03:31.8]} 15... Qxd1 {[%clk 0:03:46.2]} 16. Rfxd1 {[%clk 0:03:30.2]} 16...
exd4 {[%clk 0:03:45.4]} 17. Bxd4 {[%clk 0:03:30.1]} 17... Ng4 {[%clk 0:03:30.5]}
18. f3 {[%clk 0:03:22.2]} 18... Nh6 {[%clk 0:03:29.3]} 19. Rdc1 {[%clk
0:03:09.8]} 19... c6 {[%clk 0:03:21.4]} 20. Rab1 {[%clk 0:03:03.6]} 20... Bc8
{[%clk 0:03:18.5]} 21. Bc5 {[%clk 0:02:56.5]} 21... Re8 {[%clk 0:03:13.9]} 22.
Bd6 {[%clk 0:02:55]} 22... Re6 {[%clk 0:03:08.4]} 23. Bxe6 {[%clk 0:02:50]}
23... dxe6 {[%clk 0:03:04.6]} 24. Rxc6 {[%clk 0:02:47]} 24... Bd7 {[%clk
0:03:02.2]} 25. Rxa6 {[%clk 0:02:41.9]} 25... Re8 {[%clk 0:02:45.8]} 26. Rab6
{[%clk 0:02:40.2]} 26... g6 {[%clk 0:02:40.6]} 27. Rb8 {[%clk 0:02:38.2]} 27...
Rxb8 {[%clk 0:02:38]} 28. Rxb8+ {[%clk 0:02:38.1]} 28... Kg7 {[%clk 0:02:33.3]}
29. Bf8+ {[%clk 0:02:37.3]} 1-0